Workbook

Sheet PFP1
A1: PROPOSTA FINANCEIRA DO PROJETO | H1: CODIGO:
H2: PFP-1
A3: NOME DA EMPRESA:
A4: TECHNE Engenheiros Consultores Ltda.
A5: PROJETO: | D5: CONTRATANTE: | H5: EDITAL:
A6: CONTRATAÇÃO DE SERVIÇOS DE APOIO TÉCNICO, APOIO À FISCALIZAÇÃO, SUPERVISÃO TÉCNICA E CAPACITAÇÃO TÉCNICA, VISANDO A IMPLANTAÇÃO E ACOMPANHAMENTO DE AÇÕES DE DESENVOLVIMENTO REGIONAL NA ÁREA DE ATUAÇÃO DA CODEVASF NOS ESTADOS DO AMAPÁ, BAHIA, CEARÁ, GOIÁS, MARANHÃO, MATO GROSSO, MINAS GERAIS, PARÁ, PARAÍBA, PERNAMBUCO, PIAUÍ, RIO GRANDE DO NORTE, TOCANTINS E NO DISTRITO FEDERAL. | D6: CODEVASF (SEDE)
A7: Cod. | B7: Categoria / Insumo | C7: Uni | D7: Qde | E7: CUD | F7: PU | G7: FatorK | H7: CT | I7: PT
A8: MO | B8: =DQC!B6 -> Mão de Obra com Vínculo | H8: =SUM(H9:H14) -> 3410499.84 | I8: =SUM(I9:I14) -> 8054237.16
A9: P1 | B9: =DQC!B7 -> Profissional Pleno - Coordenador | C9: mês | D9: =DQC!D7 -> 12 | E9: =DQC!E7 -> 13887.45 | F9: =ROUND(E9*G9,2) -> 32796.6 | G9: =PFP2.1_FatorKa!$E$37 -> 2.3616 | H9: =ROUND(D9*E9,2) -> 166649.4 | I9: =ROUND(F9*D9,2) -> 393559.2
A10: P2 | B10: =DQC!B8 -> Profissional Médio | C10: mês | D10: =DQC!D8 -> 12 | E10: =DQC!E8 -> 6417.36 | F10: =ROUND(E10*G10,2) -> 15155.24 | G10: =PFP2.1_FatorKa!$E$37 -> 2.3616 | H10: =ROUND(D10*E10,2) -> 77008.32 | I10: =ROUND(F10*D10,2) -> 181862.88
A11: P3 | B11: =DQC!B9 -> Profissional Júnior - Técnico de campo | C11: mês | D11: =DQC!D9 -> 240 | E11: =DQC!E9 -> 9350 | F11: 22080.96 | G11: =PFP2.1_FatorKa!$E$37 -> 2.3616 | H11: 2244000 | I11: 5299430.4
A12: P3 | B12: =DQC!B10 -> Profissional júnior - Geral | C12: mês | D12: =DQC!D10 -> 36 | E12: =DQC!E10 -> 6231.17 | F12: 14715.53 | G12: =PFP2.1_FatorKa!$E$37 -> 2.3616 | H12: 224322.12 | I12: 529759.08
A13: T1 | B13: =DQC!B11 -> Técnico Pleno - Técnico de Campo | C13: mês | D13: =DQC!D11 -> 228 | E13: =DQC!E11 -> 2910.5 | F13: 6873.44 | G13: =PFP2.1_FatorKa!$E$37 -> 2.3616 | H13: 663594 | I13: 1567144.32
A14: T1 | B14: =DQC!B12 -> Técnico Pleno - Técnico Geral | C14: mês | D14: =DQC!D12 -> 12 | E14: =DQC!E12 -> 2910.5 | F14: 6873.44 | G14: =PFP2.1_FatorKa!$E$37 -> 2.3616 | H14: 34926 | I14: 82481.28
A16: MO | B16: =DQC!B13 -> Mão de Obra sem Vínculo (HORISTA) | H16: =SUM(H17) -> 37262.4 | I16: =SUM(I17:K17) -> 107010.4
A17: P2 | B17: =DQC!B14 -> Profissional Médio - horas de capacitação e treinamento | C17: Horas | D17: =DQC!D14 -> 560 | E17: =DQC!E14 -> 66.54 | F17: =ROUND(E17*G17,2) -> 191.09 | G17: =PFP2.2_FatoKb!E40 -> 2.8718 | H17: =ROUND(D17*E17,2) -> 37262.4 | I17: =ROUND(F17*D17,2) -> 107010.4
A19: DPV | B19: =DQC!B15 -> Diárias, Passagens e Veículos | H19: =SUM(H20:H23) -> 2052280.56 | I19: =SUM(I20:I23) -> 2577259.84
A20: D1 | B20: =DQC!B16 -> Diárias | C20: dia | D20: =DQC!D16 -> 1872 | E20: =DQC!E16 -> 239 | F20: =ROUND(E20*G20,2) -> 300.14 | G20: =PFP3_FatorKc!$E$19 -> 1.2558 | H20: =ROUND(D20*E20,2) -> 447408 | I20: =ROUND(F20*D20,2) -> 561862.08
A21: P1 | B21: =DQC!B17 -> Passagens Aéreas (ida e volta) - Brasília -área de atuação da Codevasf | C21: un | D21: =DQC!D17 -> 16 | E21: =DQC!E17 -> 1253.16 | F21: =ROUND(E21*G21,2) -> 1573.72 | G21: =PFP3_FatorKc!$E$19 -> 1.2558 | H21: =ROUND(D21*E21,2) -> 20050.56 | I21: =ROUND(F21*D21,2) -> 25179.52
A22: V1 | B22: =DQC!B18 -> Saveiro Robust 1.6 Total Flex 8V ou similar | C22: mês | D22: =DQC!D18 -> 180 | E22: =DQC!E18 -> 3311.9 | F22: 4159.08 | G22: =PFP3_FatorKc!$E$19 -> 1.2558 | H22: 596142 | I22: 748634.4
A23: V2 | B23: =DQC!B19 -> Hilux CS 4x4 2.8 TDI Diesel Mec. ou similar | C23: mês | D23: =DQC!D19 -> 168 | E23: =DQC!E19 -> 5885 | F23: 7390.38 | G23: =PFP3_FatorKc!$E$19 -> 1.2558 | H23: 988680 | I23: 1241583.84
A24: EM | B24: =DQC!B20 -> Equipamentos e Materiais | H24: =SUM(H25:H27) -> 86853.6 | I24: =SUM(I25:I27) -> 109070.4
A25: EM1 | B25: =DQC!B21 -> Notebook tela 14”, HD 1TB, memória RAM de 8GB | C25: un | D25: =DQC!D21 -> 480 | E25: =DQC!E21 -> 120.46 | F25: =ROUND(E25*G25,2) -> 151.27 | G25: =PFP3_FatorKc!$E$19 -> 1.2558 | H25: =ROUND(D25*E25,2) -> 57820.8 | I25: =ROUND(F25*D25,2) -> 72609.6
A26: EM3 | B26: Modem | C26: un | D26: =DQC!D22 -> 240 | E26: =DQC!E22 -> 18.64 | F26: =ROUND(E26*G26,2) -> 23.41 | G26: =PFP3_FatorKc!$E$19 -> 1.2558 | H26: =ROUND(D26*E26,2) -> 4473.6 | I26: =ROUND(F26*D26,2) -> 5618.4
A27: EM4 | B27: Internet Móvel | C27: un | D27: =DQC!D23 -> 240 | E27: =DQC!E23 -> 102.33 | F27: 128.51 | G27: =PFP3_FatorKc!$E$19 -> 1.2558 | H27: 24559.2 | I27: 30842.4
A28: TOTAL DOS CUSTOS DIRETOS | F28: =H8+H16+H19+H24 -> 5586896.4
A29: TOTAL DOS ENCARGOS E DESPESAS DIVERSAS | F29: =F30-F28 -> 5260681.4
A30: TOTAL DA PROPOSTA | F30: =I8+I16+I19+I24 -> 10847577.8
A31: NOME DO INFORMANTE: | H31: QUALIFICAÇÃO
H32: Diretor Executivo
A33: ASSINATURA: | H33: DATA:
H34: 2021-11-29
A35: OBSERVAÇÃO:
A36: Un - unidade de medição do insumo;
A37: Qde - Quantidade do Insumo (não pode ocorrer alteração pela Licitante)
A38: CUD - Custo Unitário Direto do Insumo (sem encargos, taxas e impostos, valor não pode ser maior que o Orçado pela Codevasf)
A39: CT - Custo Total (sem encargos, taxas e impostos) - CT = Qde x CUD
A40: FatorK - Taxa de Ressarcimento de Despesas e Encargos (detalhar composição nas Planilhas "FCON2.1", "FCON2.2", "FCON3")
A41: PU - Preço Unitário (incluído encargos, taxas e impostos) - PU = CUD x FatorK
A42: PT - Preço Total (incluído encargos, taxas e impostos) - PT = Qde x PU

Sheet PFP2.1_FatorKa
A1: DETALHAMENTO DOS ENCARGOS SOCIAIS: Ka | F1: CODIGO:
F2: PFP-2.1
A3: NOME DA EMPRESA:
A4: ='PFP1'!A4:I4 -> TECHNE Engenheiros Consultores Ltda.
A5: PROJETO: | C5: CONTRATANTE: | F5: EDITAL:
A6: CONTRATAÇÃO DE SERVIÇOS DE APOIO TÉCNICO, APOIO À FISCALIZAÇÃO, SUPERVISÃO TÉCNICA E CAPACITAÇÃO TÉCNICA, VISANDO A IMPLANTAÇÃO E ACOMPANHAMENTO DE AÇÕES DE DESENVOLVIMENTO REGIONAL NA ÁREA DE ATUAÇÃO DA CODEVASF NOS ESTADOS DO AMAPÁ, BAHIA, CEARÁ, GOIÁS, MARANHÃO, MATO GROSSO, MINAS GERAIS, PARÁ, PARAÍBA, PERNAMBUCO, PIAUÍ, RIO GRANDE DO NORTE, TOCANTINS E NO DISTRITO FEDERAL. | C6: CODEVASF (SEDE)
A7: DISCRIMINAÇÃO | E7: VALORES
E8: % | F8: R$
A9: A | B9: ENCARGOS SOCIAIS BÁSICOS | E9: =ROUND(SUM(E10:E18),4) -> 0.378 | F9: =E9*'PFP1'!$H$8 -> 1289168.94
A10: A1 | B10: Seconci | E10: 0.01 | F10: =E10*'PFP1'!$H$8 -> 34104.9984
A11: A2 | B11: INSS | E11: 0.2 | F11: =E11*'PFP1'!$H$8 -> 682099.968
A12: A3 | B12: FGTS | E12: 0.08 | F12: =E12*'PFP1'!$H$8 -> 272839.9872
A13: A4 | B13: Incra | E13: 0.002 | F13: =E13*'PFP1'!$H$8 -> 6820.99968
A14: A5 | B14: Salário Educação | E14: 0.025 | F14: =E14*'PFP1'!$H$8 -> 85262.496
A15: A6 | B15: Sebrae | E15: 0.006 | F15: =E15*'PFP1'!$H$8 -> 20462.99904
A16: A7 | B16: Seguro contra acidente | E16: 0.03 | F16: =E16*'PFP1'!$H$8 -> 102314.9952
A17: A8 | B17: Senai | E17: 0.01 | F17: =E17*'PFP1'!$H$8 -> 34104.9984
A18: A9 | B18: Sesi | E18: 0.015 | F18: =E18*'PFP1'!$H$8 -> 51157.4976
A19: B | B19: ENCARGOS SOCIAIS QUE RECEBEM INCIDÊNCIA DE "A" | E19: =ROUND(SUM(E20:E26),4) -> 0.2036 | F19: =E19*'PFP1'!$H$8 -> 694377.7674
A20: B1 | B20: 13º Salário | E20: 0.0833 | F20: =E20*'PFP1'!$H$8 -> 284094.6367
A21: B2 | B21: Auxilio Enfermidade | E21: 0.0067 | F21: =E21*'PFP1'!$H$8 -> 22850.34893
A22: B3 | B22: Licença Paternidade | E22: 0.0006 | F22: =E22*'PFP1'!$H$8 -> 2046.299904
A23: B4 | B23: Faltas Justificadas | E23: 0.0056 | F23: =E23*'PFP1'!$H$8 -> 19098.7991
A24: B5 | B24: Auxílio Acidente de Trabalho | E24: 0.0008 | F24: =E24*'PFP1'!$H$8 -> 2728.399872
A25: B6 | B25: Férias Gozadas | E25: 0.1063 | F25: =E25*'PFP1'!$H$8 -> 362536.133
A26: B7 | B26: Salário Maternidade | E26: 0.0003 | F26: =E26*'PFP1'!$H$8 -> 1023.149952
A27: C | B27: ENCARGOS SOCIAIS QUE NÃO RECEBEM INCIDÊNCIA DE "A" | E27: =ROUND(SUM(E28:E32),4) -> 0.0691 | F27: =E27*'PFP1'!$H$8 -> 235665.5389
A28: C1 | B28: Aviso Prévio Indenizado | E28: 0.0324 | F28: =E28*'PFP1'!$H$8 -> 110500.1948
A29: C2 | B29: Aviso Prévio Trabalhado | E29: 0.0008 | F29: =E29*'PFP1'!$H$8 -> 2728.399872
A30: C3 | B30: Férias Indenizadas | E30: 0.0036 | F30: =E30*'PFP1'!$H$8 -> 12277.79942
A31: C4 | B31: Depósito Rescisão Sem Justa Causa | E31: 0.0296 | F31: =E31*'PFP1'!$H$8 -> 100950.7953
A32: C5 | B32: Indenização Adicional | E32: 0.0027 | F32: =E32*'PFP1'!$H$8 -> 9208.349568
A33: D | B33: REINCIDÊNCIAS | E33: =ROUND(SUM(E34:E35),4) -> 0.0799 | F33: =E33*'PFP1'!$H$8 -> 272498.9372
A34: D1 | B34: Reincidência de "A" sobre "B" | E34: 0.077 | F34: =E34*'PFP1'!$H$8 -> 262608.4877
A35: D2 | B35: Reincidência de "A" sobre Aviso Prévio Trabalhado e reincidência do FGTS sobre aviso prévio indenizado | E35: =(E29*E9)+(E28*E12) -> 0.0028944 | F35: =E35*'PFP1'!$H$8 -> 9871.350737
A36: K1 | B36: ENCARGOS SOCIAIS | E36: =ROUND(E9+E19+E27+E33,4) -> 0.7306 | F36: =E36*'PFP1'!$H$8 -> 2491711.183
A37: Ka | B37: TAXA DE RESSARCIMENTO DE DESPESAS E ENCARGOS SOBRE M.O. | E37: =ROUND((1+E36+PFP3_FatorKc!E15)*(1+PFP3_FatorKc!E14)*(1+PFP3_FatorKc!E10),4) -> 2.3616
A38: NOME DO INFORMANTE: | E38: QUALIFICAÇÃO
E39: ='PFP1'!H32 -> Diretor Executivo
A40: ASSINATURA: | E40: DATA:
E41: ='PFP1'!H34 -> 2021-11-29
A42: OBSERVAÇÃO:
A43: 1 - DISCRIMINAR OS ENCARGOS SOCIAIS COM SEUS RESPECTIVOS PERCENTUAS TOTALIZANDO OS MESMOS.
A44: 2 - APLICAR O % TOTAL P/ CALCULAR OS E. SOCIAIS INCIDENTES NA MÃO-DE-OBRA COM VÍNCULO PERMANENTE
A45: Ka - Taxa de Ressarcimento de Despesas e Encargos sobre a Mão de Obra COM VINCULO (incide apenas no Insumo Codigo M.O.)
A46: Ka = (1 + K1 + K2) x (1 + K3) x (1 + K4)

Sheet PFP2.2_FatoKb
A1: DETALHAMENTO DOS ENCARGOS SOCIAIS: Ka | F1: CODIGO:
F2: PFP-2.3
A3: NOME DA EMPRESA:
A4: ='PFP1'!A4:I4 -> TECHNE Engenheiros Consultores Ltda.
A5: PROJETO: | C5: CONTRATANTE: | F5: EDITAL:
A6: CONTRATAÇÃO DE SERVIÇOS DE APOIO TÉCNICO, APOIO À FISCALIZAÇÃO, SUPERVISÃO TÉCNICA E CAPACITAÇÃO TÉCNICA, VISANDO A IMPLANTAÇÃO E ACOMPANHAMENTO DE AÇÕES DE DESENVOLVIMENTO REGIONAL NA ÁREA DE ATUAÇÃO DA CODEVASF NOS ESTADOS DO AMAPÁ, BAHIA, CEARÁ, GOIÁS, MARANHÃO, MATO GROSSO, MINAS GERAIS, PARÁ, PARAÍBA, PERNAMBUCO, PIAUÍ, RIO GRANDE DO NORTE, TOCANTINS E NO DISTRITO FEDERAL. | C6: CODEVASF (SEDE)
A7: DISCRIMINAÇÃO | E7: VALORES
E8: % | F8: R$
A9: A | B9: ENCARGOS SOCIAIS BÁSICOS | E9: =ROUND(SUM(E10:E18),4) -> 0.378 | F9: =E9*'PFP1'!$H$17 -> 14085.1872
A10: A1 | B10: Seconci | E10: 0.01 | F10: =E10*'PFP1'!$H$17 -> 372.624
A11: A2 | B11: INSS | E11: 0.2 | F11: =E11*'PFP1'!$H$17 -> 7452.48
A12: A3 | B12: FGTS | E12: 0.08 | F12: =E12*'PFP1'!$H$17 -> 2980.992
A13: A4 | B13: Incra | E13: 0.002 | F13: =E13*'PFP1'!$H$17 -> 74.5248
A14: A5 | B14: Salário Educação | E14: 0.025 | F14: =E14*'PFP1'!$H$17 -> 931.56
A15: A6 | B15: Sebrae | E15: 0.006 | F15: =E15*'PFP1'!$H$17 -> 223.5744
A16: A7 | B16: Seguro contra acidente | E16: 0.03 | F16: =E16*'PFP1'!$H$17 -> 1117.872
A17: A8 | B17: Senai | E17: 0.01 | F17: =E17*'PFP1'!$H$17 -> 372.624
A18: A9 | B18: Sesi | E18: 0.015 | F18: =E18*'PFP1'!$H$17 -> 558.936
A19: B | B19: ENCARGOS SOCIAIS QUE RECEBEM INCIDÊNCIA DE "A" | E19: =ROUND(SUM(E20:E29),4) -> 0.4842 | F19: =E19*'PFP1'!$H$17 -> 18042.45408
A20: B1 | B20: Repouso Semanal Remunerado | E20: 0.1775 | F20: =E20*'PFP1'!$H$17 -> 6614.076
A21: B2 | B21: Feriados | E21: 0.0341 | F21: =E21*'PFP1'!$H$17 -> 1270.64784
A22: B3 | B22: Auxílio Enfermidade | E22: 0.0086 | F22: =E22*'PFP1'!$H$17 -> 320.45664
A23: B4 | B23: 13º Salário | E23: 0.1062 | F23: =E23*'PFP1'!$H$17 -> 3957.26688
A24: B5 | B24: Licença Patrnidade | E24: 0.0007 | F24: =E24*'PFP1'!$H$17 -> 26.08368
A25: B6 | B25: Faltas Justificadas | E25: 0.0071 | F25: =E25*'PFP1'!$H$17 -> 264.56304
B26: Dias de Chuva | E26: 0.0131 | F26: =E26*'PFP1'!$H$17 -> 488.13744
B27: Auxílio Acidente de Trabalho | E27: 0.0011 | F27: =E27*'PFP1'!$H$17 -> 40.98864
B28: Férias Gozadas | E28: 0.1355 | F28: =E28*'PFP1'!$H$17 -> 5049.0552
A29: B7 | B29: Saário Maternidade | E29: 0.0003 | F29: =E29*'PFP1'!$H$17 -> 11.17872
A30: C | B30: ENCARGOS SOCIAIS QUE NÃO RECEBEM INCIDÊNCIA DE "A" | E30: =ROUND(SUM(E31:E35),4) -> 0.088 | F30: =E30*'PFP1'!$H$17 -> 3279.0912
A31: C1 | B31: Aviso Prévio Indenizado | E31: 0.0412 | F31: =E31*'PFP1'!$H$17 -> 1535.21088
A32: C2 | B32: Aviso Prévio Trabalhado | E32: 0.001 | F32: =E32*'PFP1'!$H$17 -> 37.2624
A33: C3 | B33: Férias Indenizadas | E33: 0.0046 | F33: =E33*'PFP1'!$H$17 -> 171.40704
A34: C4 | B34: Depósito Rescisão Sem Justa Causa | E34: 0.0377 | F34: =E34*'PFP1'!$H$17 -> 1404.79248
A35: C5 | B35: Indenização Adicional | E35: 0.0035 | F35: =E35*'PFP1'!$H$17 -> 130.4184
A36: D | B36: REINCIDÊNCIAS | E36: =ROUND(SUM(E37:E38),4) -> 0.1867 | F36: =E36*'PFP1'!$H$17 -> 6956.89008
A37: D1 | B37: Reincidência de "A" sobre "B" | E37: 0.183 | F37: =E37*'PFP1'!$H$17 -> 6819.0192
A38: D2 | B38: Reincidência de "A" sobre Aviso Prévio Trabalhado e reincidência do FGTS sobre aviso prévio indenizado | E38: 0.0037 | F38: =E38*'PFP1'!$H$17 -> 137.87088
A39: K1 | B39: ENCARGOS SOCIAIS | E39: =ROUND(E9+E19+E30+E36,4) -> 1.1369 | F39: =E39*'PFP1'!$H$17 -> 42363.62256
A40: Ka | B40: TAXA DE RESSARCIMENTO DE DESPESAS E ENCARGOS SOBRE M.O. | E40: =ROUND((1+E39+PFP3_FatorKc!E15)*(1+PFP3_FatorKc!E14)*(1+PFP3_FatorKc!E10),4) -> 2.8718
A41: NOME DO INFORMANTE: | E41: QUALIFICAÇÃO
E42: ='PFP1'!H32 -> Diretor Executivo
A43: ASSINATURA: | E43: DATA:
E44: ='PFP1'!H34 -> 2021-11-29
A45: OBSERVAÇÃO:
A46: 1 - DISCRIMINAR OS ENCARGOS SOCIAIS COM SEUS RESPECTIVOS PERCENTUAS TOTALIZANDO OS MESMOS.
A47: 2 - APLICAR O % TOTAL P/ CALCULAR OS E. SOCIAIS INCIDENTES NA MÃO-DE-OBRA COM VÍNCULO PERMANENTE
A48: Ka - Taxa de Ressarcimento de Despesas e Encargos sobre a Mão de Obra COM VINCULO (incide apenas no Insumo Codigo M.O.)
A49: Ka = (1 + K1 + K2) x (1 + K3) x (1 + K4)

Sheet PFP3_FatorKc
A1: DESPESAS FISCAIS E CUSTOS DIVERSOS: Kc | F1: CODIGO:
F2: PFP-3
A3: NOME DA EMPRESA:
A4: ='PFP1'!$A$4:$I$4 -> TECHNE Engenheiros Consultores Ltda.
A5: PROJETO: | C5: CONTRATANTE: | F5: EDITAL:
A6: CONTRATAÇÃO DE SERVIÇOS DE APOIO TÉCNICO, APOIO À FISCALIZAÇÃO, SUPERVISÃO TÉCNICA E CAPACITAÇÃO TÉCNICA, VISANDO A IMPLANTAÇÃO E ACOMPANHAMENTO DE AÇÕES DE DESENVOLVIMENTO REGIONAL NA ÁREA DE ATUAÇÃO DA CODEVASF NOS ESTADOS DO AMAPÁ, BAHIA, CEARÁ, GOIÁS, MARANHÃO, MATO GROSSO, MINAS GERAIS, PARÁ, PARAÍBA, PERNAMBUCO, PIAUÍ, RIO GRANDE DO NORTE, TOCANTINS E NO DISTRITO FEDERAL. | C6: CODEVASF (SEDE) | F6: ='PFP1'!$H$6 -> 0 | H6: referencia orgao
A7: DISCRIMINAÇÃO 1 | D7: VALORES
D8: % preço | E8: % custo | F8: R$ | H8: % preço
A9: K4 | B9: DESPESAS FISCAIS | D9: K' (%)2 | E9: K (%)3 | H9: K' (%)2
D10: =ROUND(D11+D12+D13,4) -> 0.124 | E10: =ROUND(E11+E12+E13,4) -> 0.1416 | F10: =E10*SUM('PFP1'!$H$8*(1+PFP2.1_FatorKa!$E$36)+'PFP1'!$H$16*(1+PFP2.2_FatoKb!$E$39)+'PFP1'!$H$17+'PFP1'!$H$23+PFP3_FatorKc!$F$15+PFP3_FatorKc!$F$14) -> 1171583.885 | H10: =ROUND(H11+H12+H13,4) -> 0
A11: 1 | B11: ISS | D11: 0.05 | E11: =ROUND((1/(1-$D$10))*D11,4) -> 0.0571 | F11: =E11*SUM('PFP1'!$H$8*(1+PFP2.1_FatorKa!$E$36)+'PFP1'!$H$16*(1+PFP2.2_FatoKb!$E$39)+'PFP1'!$H$17+'PFP1'!$H$23+PFP3_FatorKc!$F$15+PFP3_FatorKc!$F$14) -> 472439.5467
A12: 2 | B12: PIS - aliquota efetiva com percentual-desconto de 20% | D12: =ROUND(1.65%*0.8,4) -> 0.0132 | E12: =ROUND((1/(1-$D$10))*D12,4) -> 0.0151 | F12: =E12*SUM('PFP1'!$H$8*(1+PFP2.1_FatorKa!$E$36)+'PFP1'!$H$16*(1+PFP2.2_FatoKb!$E$39)+'PFP1'!$H$17+'PFP1'!$H$23+PFP3_FatorKc!$F$15+PFP3_FatorKc!$F$14) -> 124935.8521
A13: 3 | B13: COFINS - aliquota efetiva com percentual-desconto de 20% | D13: =ROUND(7.6%*0.8,4) -> 0.0608 | E13: =ROUND((1/(1-$D$10))*D13,4) -> 0.0694 | F13: =E13*SUM('PFP1'!$H$8*(1+PFP2.1_FatorKa!$E$36)+'PFP1'!$H$16*(1+PFP2.2_FatoKb!$E$39)+'PFP1'!$H$17+'PFP1'!$H$23+PFP3_FatorKc!$F$15+PFP3_FatorKc!$F$14) -> 574208.4859
A14: K3 | B14: REMUNERAÇÃO DA EMPRESA (LUCRO) | E14: 0.1 | F14: =E14*SUM('PFP1'!$H$8*(1+PFP2.1_FatorKa!$E$36)+'PFP1'!$H$16*(1+PFP2.2_FatoKb!$E$36)+'PFP1'!$H$17+'PFP1'!$H$23+PFP3_FatorKc!$F$15) -> 748953.7053
A15: K2 | B15: CUSTOS DA ADMINISTRAÇÃO CENTRAL | E15: =ROUND(SUM(E16:E18),4) -> 0.15 | F15: =ROUND(E15*('PFP1'!$H$8+'PFP1'!$H$16),2) -> 517164.34 | I15: 0.15
A16: 4 | B16: Custos da administração central da empresa (diretoria, pessoal técnico de apoio e pessoal administrativo não diretamente vinculado à prestação dos serviços) | E16: 0.1 | F16: =ROUND(E16*('PFP1'!$H$8+'PFP1'!$H$16),2) -> 344776.22 | I16: 0.1
A17: 5 | B17: Outras despesas que afetam o custo de produção como treinamento, biblioteca, programa de qualidade, programa de benefícios, auditoria interna e externa | E17: 0.03 | F17: =ROUND(E17*('PFP1'!$H$8+'PFP1'!$H$16),2) -> 103432.87 | I17: 0.03
A18: 6 | B18: Despesas fixas e variaveis com patrimônio, aluguéis, comunicação, manutenção e transporte não diretamente relacionados com o custo direto dos serviços | E18: 0.02 | F18: =ROUND(E18*('PFP1'!$H$8+'PFP1'!$H$16),2) -> 68955.24 | I18: 0.02
A19: Kc | B19: TAXA RESSARCIMENTO DE DESPESAS SOBRE CUSTOS DIVERSOS | E19: =ROUND((1+E14)*(1+E10),4) -> 1.2558 | I19: 1.1946
A20: NOME DO INFORMANTE: | E20: QUALIFICAÇÃO:
A21: ='PFP1'!$A$32:$G$32 -> 0 | E21: ='PFP1'!$H$32 -> Diretor Executivo
A22: ASSINATURA: | E22: DATA:
E23: ='PFP1'!$H$34 -> 2021-11-29
A24: Observação:
A25: 1 - RELACIONAR OS CUSTOS DE ADMINISTRAÇÃO COM RESPECTIVOS PERCENTUAIS INCIDENTES NA MÃO -DE-OBRA
A26: 1 - DISCRIMINAR OS TRIBUTOS QUE INCIDEM SOBRE OS CUSTOS DA PRESTAÇÃO DOS SERVIÇOS
A27: 2 - K4 = INDICAR % DE CADA TRIBUTO E A SOMA DOS MESMOS (ex: ISS 5% + PIS 1,65% + COFINS 7,6% = 14,25%)
A28: 3 - PIS e COFINS, Regime de Incidencia Acumulativa (0,65% e 3,00% - sem percentual de desconto) ou em Regime de Incidencia Não Acumulativa (1,65% e 7,60% - aplicável percentual de desconto) de acordo com a forma de apuração do lucro no IRPJ. APRESENTAR COMPROVANTES de aproveitamento de créditos tributários dos últimos 12 meses em caso de aplicação de "percentual de desconto".
A29: 4 - AS DESPESAS FISCAIS (K4) INCIDEM SOBRE O TOTAL DA FATURA E NÃO SOBRE OS CUSTOS INCORRIDOS,
A30: DEVENDO SER CALCULADO O K4' APLICANDO-SE A SEGUINTE FÓRMULA:
A31: K4' = { [ 1 / ( 1 - K4) ] - 1 } x 100
A32: =CONCATENATE(" K4' = { [ 1 / ( 1 - ",D10," ) ] - 1 } x 100") -> K4' = { [ 1 / ( 1 - 0,124 ) ] - 1 } x 100
A33: Kc - Taxa de Ressarcimento de Despesas sobre Custos Diversos (incide sobre os Insumos Codigo DP e EQ)
A34: Kc = (1 + K3) x (1 + K4)
A35: K2 - Incide sobre o Custo Total (CT) da Mão de Obra (MO)
A36: K3 - Incide sobre o Custo Total (CT) Mão de Obra com encargos (MO x Ka ou Kb), demais Custos (DP e EQ), e Custos da Administração Central (K2)
A37: K4 - Incide sobre o Custo Total (CT) Mão de Obra com encargos (MO x Ka ou Kb), demais Custos (DP e EQ), e Custos da Administração Central (K2) e Lucro (K3)

Sheet DQC
A1: DETALHAMENTO DO QUANTITATIVOS CONTRATADOS | AA1: CODIGO:
AA2: DQC
A3: INSUMOS POR ESTADO/PRODUTO
A5: Cod. | B5: Categoria / Insumo | C5: Uni | D5: Qde | E5: CUD | F5: PU | G5: FatorK | H5: CT | I5: PT | J5: SEDE- CODEVASF | K5: 1º/SR | L5: 2º/SR | M5: 3º/SR | N5: 4º/SR | O5: 5º/SR | P5: 6º/SR | Q5: 7º/SR | R5: 8º/SR | S5: 9º/SR | T5: 10º/SR | U5: PA | V5: MT | W5: PR/EAP | X5: PR/ECE | Y5: PR/ERN | Z5: PR/EPB | AA5: Total
A6: MO | B6: Mão de Obra com Vínculo | H6: =SUM(H7:H12) -> 3410499.84 | I6: =SUM(I7:I12) -> 8054237.16 | J6: =(J7+J8+J9+J10+J12+J11)/12 -> 15 | K6: =(K7+K8+K9+K10+K12+K11)/12 -> 3 | L6: 0 | M6: 2 | N6: 0 | O6: 0 | P6: 2 | Q6: 3 | R6: =(R7+R8+R9+R10+R12+R11)/12 -> 2 | S6: 4 | T6: 2 | U6: 2 | V6: 0 | W6: 2 | X6: 3 | Y6: 3 | Z6: 2 | AA6: =SUM(J6:Z6) -> 45
A7: P1 | B7: Profissional Pleno - Coordenador | C7: mês | D7: =AA7 -> 12 | E7: 13887.45 | F7: =ROUND(E7*G7,2) -> 32796.6 | G7: =PFP2.1_FatorKa!$E$37 -> 2.3616 | H7: =ROUND(D7*E7,2) -> 166649.4 | I7: =ROUND(F7*D7,2) -> 393559.2 | J7: 12 | AA7: =SUM(J7:Z7) -> 12
A8: P2 | B8: Profissional Médio | C8: mês | D8: =AA8 -> 12 | E8: 6417.36 | F8: =ROUND(E8*G8,2) -> 15155.24 | G8: =PFP2.1_FatorKa!$E$37 -> 2.3616 | H8: =ROUND(D8*E8,2) -> 77008.32 | I8: =ROUND(F8*D8,2) -> 181862.88 | J8: 12 | AA8: 12 | AC8: Total | AD8: Superior | AE8: Técnico
A9: P3 | B9: Profissional Júnior - Técnico de campo | C9: mês | D9: 240 | E9: 9350 | F9: 22080.96 | G9: =PFP2.1_FatorKa!$E$37 -> 2.3616 | H9: 2244000 | I9: =ROUND(F9*D9,2) -> 5299430.4 | J9: 48 | K9: 12 | M9: 12 | P9: 12 | Q9: 24 | R9: 12 | S9: 24 | T9: 12 | U9: 12 | W9: 12 | X9: 24 | Y9: 24 | Z9: 12 | AA9: 240 | AC9: =AD9+AE9 -> 29 | AD9: =AA19/12 -> 14 | AE9: =AA18/12 -> 15 | AF9: Veículos | AG9: =AA9/12 -> 20
A10: P3 | B10: Profissional júnior - Geral | C10: mês | D10: =AA10 -> 36 | E10: 6231.17 | F10: 14715.53 | G10: =PFP2.1_FatorKa!$E$37 -> 2.3616 | H10: 224322.12 | I10: =ROUND(F10*D10,2) -> 529759.08 | J10: 36 | AA10: 36 | AC10: =AD10+AE10 ->  | AD10: =(AA7+AA8+AA9+AA10+#REF!)/12 ->  | AE10: =(AA11+AA12+#REF!)/12 ->  | AF10: Profissionais | AG10: =AA10/12 -> 3
A11: T1 | B11: Técnico Pleno - Técnico de Campo | C11: mês | D11: 228 | E11: 2910.5 | F11: 6873.44 | G11: =PFP2.1_FatorKa!$E$37 -> 2.3616 | H11: 663594 | I11: =ROUND(F11*D11,2) -> 1567144.32 | J11: 60 | K11: 24 | M11: 12 | P11: 12 | Q11: 12 | R11: 12 | S11: 24 | T11: 12 | U11: 12 | W11: 12 | X11: 12 | Y11: 12 | Z11: 12 | AA11: 228 | AG11: 19
A12: T1 | B12: Técnico Pleno - Técnico Geral | C12: mês | D12: 12 | E12: 2910.5 | F12: 6873.44 | G12: =PFP2.1_FatorKa!$E$37 -> 2.3616 | H12: 34926 | I12: =ROUND(F12*D12,2) -> 82481.28 | J12: 12 | AA12: 12
A13: MO | B13: Mão de Obra sem Vínculo (HORISTA) | H13: =H14 -> 37262.4 | I13: =I14 -> 107010.4 | J13: =J14 -> 560 | AA13: =SUM(J13:Z13) -> 560
A14: P2 | B14: Profissional Médio - horas de capacitação e treinamento | C14: hora | D14: =AA14 -> 560 | E14: 66.54 | F14: =ROUND(E14*G14,2) -> 191.09 | G14: =PFP2.2_FatoKb!E40 -> 2.8718 | H14: =D14*E14 -> 37262.4 | I14: =ROUND(F14*D14,2) -> 107010.4 | J14: =40*14 -> 560 | AA14: =SUM(J14:Z14) -> 560
A15: DPV | B15: Diárias, Passagens e Veículos | H15: =SUM(H16:H19) -> 2052280.56 | I15: =SUM(I16:I19) -> 2577259.84
A16: D1 | B16: Diárias | C16: dia | D16: =AA16 -> 1872 | E16: 239 | F16: =ROUND(E16*G16,2) -> 300.14 | G16: =PFP3_FatorKc!$E$19 -> 1.2558 | H16: =ROUND(D16*E16,2) -> 447408 | I16: =ROUND(F16*D16,2) -> 561862.08 | J16: =(J9+J11)*4 -> 432 | K16: =(K9+K11)*4 -> 144 | L16: =(L9+L11)*4 -> 0 | M16: 96 | N16: 0 | O16: 0 | P16: 96 | Q16: 144 | R16: 96 | S16: 192 | T16: 96 | U16: 96 | V16: 0 | W16: 96 | X16: 144 | Y16: 144 | Z16: 96 | AA16: =SUM(J16:Z16) -> 1872
A17: P1 | B17: Passagens Aéreas (ida e volta) - Brasília -área de atuação da Codevasf | C17: un | D17: =AA17 -> 16 | E17: 1253.16 | F17: =ROUND(E17*G17,2) -> 1573.72 | G17: =PFP3_FatorKc!$E$19 -> 1.2558 | H17: =ROUND(D17*E17,2) -> 20050.56 | I17: =ROUND(F17*D17,2) -> 25179.52 | J17: 16 | AA17: =SUM(J17:Z17) -> 16
A18: V1 | B18: Saveiro Robust 1.6 Total Flex 8V ou similar | C18: mês | D18: =AA18 -> 180 | E18: 3311.9 | F18: 4159.08 | G18: =PFP3_FatorKc!$E$19 -> 1.2558 | H18: =ROUND(D18*E18,2) -> 596142 | I18: =ROUND(F18*D18,2) -> 748634.4 | J18: 12 | K18: 12 | M18: 12 | P18: 12 | Q18: 12 | R18: 12 | S18: 24 | T18: 12 | U18: 12 | V18: 12 | W18: 12 | X18: 12 | Y18: 12 | Z18: 12 | AA18: 180
A19: V2 | B19: Hilux CS 4x4 2.8 TDI Diesel Mec. ou similar | C19: mês | D19: =AA19 -> 168 | E19: =5000+800+85 -> 5885 | F19: 7390.38 | G19: =PFP3_FatorKc!$E$19 -> 1.2558 | H19: =ROUND(D19*E19,2) -> 988680 | I19: =ROUND(F19*D19,2) -> 1241583.84 | J19: 12 | K19: =K9 -> 12 | L19: =L9 -> 0 | M19: 12 | N19: 0 | O19: 0 | P19: 12 | Q19: 12 | R19: 12 | S19: 12 | T19: 12 | U19: 12 | V19: 0 | W19: 12 | X19: 12 | Y19: 24 | Z19: 12 | AA19: =SUM(J19:Z19) -> 168
A20: EM | B20: Equipamentos e Materiais | H20: =SUM(H21:H23) -> 86853.6 | I20: =SUM(I21:I23) -> 109070.4
A21: EM1 | B21: Notebook tela 14”, HD 1TB, memória RAM de 8GB | C21: un | D21: =AA21*12 -> 480 | E21: 120.46 | F21: =ROUND(E21*G21,2) -> 151.27 | G21: =PFP3_FatorKc!$E$19 -> 1.2558 | H21: =ROUND(D21*E21,2) -> 57820.8 | I21: =ROUND(F21*D21,2) -> 72609.6 | J21: =(J7+J9+J11)/12 -> 10 | K21: =(K9+K12++K11)/12 -> 3 | L21: =(L9+L12++L11)/12 -> 0 | M21: 2 | N21: 0 | O21: 0 | P21: 2 | Q21: 3 | R21: 2 | S21: 4 | T21: 2 | U21: 2 | V21: 0 | W21: 2 | X21: 3 | Y21: 3 | Z21: 2 | AA21: =SUM(J21:Z21) -> 40
A22: EM3 | B22: Modem | C22: mês | D22: =(AA22*12)/2 -> 240 | E22: 18.64 | F22: 23.41 | G22: =PFP3_FatorKc!$E$19 -> 1.2558 | H22: =ROUND(D22*E22,2) -> 4473.6 | I22: =ROUND(F22*D22,2) -> 5618.4 | J22: =J21 -> 10 | K22: 3 | L22: 0 | M22: 2 | N22: 0 | O22: 0 | P22: 2 | Q22: 3 | R22: 2 | S22: 4 | T22: 2 | U22: 2 | V22: 0 | W22: 2 | X22: 3 | Y22: 3 | Z22: 2 | AA22: =SUM(J22:Z22) -> 40
A23: EM4 | B23: Internet Móvel | C23: mês | D23: =(AA23*12)/2 -> 240 | E23: 102.33 | F23: 128.51 | G23: =PFP3_FatorKc!$E$19 -> 1.2558 | H23: 24559.2 | I23: 30842.4 | J23: =J21 -> 10 | K23: 3 | L23: 0 | M23: 2 | N23: 0 | O23: 0 | P23: 2 | Q23: 3 | R23: 2 | S23: 4 | T23: 2 | U23: 2 | V23: 0 | W23: 2 | X23: 3 | Y23: 3 | Z23: 2 | AA23: =SUM(J23:Z23) -> 40
A24: TOTAL DOS CUSTOS DIRETOS | F24: =H6+H13+H15+H20 -> 5586896.4
A25: TOTAL DOS ENCARGOS E DESPESAS DIVERSAS | F25: =F26-F24 -> 5260681.4
A26: TOTAL DA PROPOSTA | F26: =I6+I13+I15+I20 -> 10847577.8
A27: NOME DO INFORMANTE: | H27: QUALIFICAÇÃO:
A28: ='PFP1'!$A$32:$G$32 -> 0 | H28: ='PFP1'!$H$32:$I$32 -> Diretor Executivo
A29: ASSINATURA: | H29: DATA:
H30: ='PFP1'!$H$34:$I$34 -> 2021-11-29
A31: OBSERVAÇÃO:
A32: Uni - unidade de medição do insumo
A33: Qde - Quantidade do Insumo (não pode ocorrer alteração pela Licitante)
A34: CUD - Custo Unitário Direto do Insumo (sem encargos, taxas e impostos, valor não pode ser maior que o Orçado pela Codevasf)
A35: CT - Custo Total (sem encargos, taxas e impostos) - CT = Qde x CUD
A36: FatorK - Taxa de Ressarcimento de Despesas e Encargos (detalhar composição nas Planilhas "FCON2.1", "FCON2.2", "FCON3")
A37: PU - Preço Unitário (incluído encargos, taxas e impostos) - PU = CUD x FatorK
A38: PT - Preço Total (incluído encargos, taxas e impostos) - PT = Qde x PU

Sheet CT_OS
H1: CODIGO:
H2: O.S.
A3: NOME DA EMPRESA: | H3: N° O.S.:
A5: PROJETO: | D5: CONTRATANTE: | H5: CONTRATO:
A6: CONTRATAÇÃO DE SERVIÇOS DE APOIO TÉCNICO, APOIO À FISCALIZAÇÃO, SUPERVISÃO TÉCNICA E CAPACITAÇÃO TÉCNICA, VISANDO A IMPLANTAÇÃO E ACOMPANHAMENTO DE AÇÕES DE DESENVOLVIMENTO REGIONAL NA ÁREA DE ATUAÇÃO DA CODEVASF NOS ESTADOS DO AMAPÁ, BAHIA, CEARÁ, GOIÁS, MARANHÃO, MATO GROSSO, MINAS GERAIS, PARÁ, PARAÍBA, PERNAMBUCO, PIAUÍ, RIO GRANDE DO NORTE, TOCANTINS E NO DISTRITO FEDERAL. | D6: CODEVASF (SEDE)
A7: Cod. | B7: Produtos/Atividades | D7: Tipo | F7: Prazo | H7: Obs
A17: Cod. | B17: Categoria / Insumo | C17: Uni | D17: Qde | E17: CUD | F17: PU | G17: FatorK | H17: CT | I17: PT
A18: =DQC!A6 -> MO | B18: =DQC!B6 -> Mão de Obra com Vínculo | H18: =SUM(H19:H24) -> 0 | I18: =SUM(I19:I24) -> 0
A19: =DQC!A7 -> P1 | B19: =DQC!B7 -> Profissional Pleno - Coordenador | C19: =DQC!C7 -> mês
A20: =DQC!A8 -> P2 | B20: =DQC!B8 -> Profissional Médio | C20: =DQC!C8 -> mês
A21: =DQC!A9 -> P3 | B21: =DQC!B9 -> Profissional Júnior - Técnico de campo | C21: =DQC!C9 -> mês
A22: =DQC!A10 -> P3 | B22: =DQC!B10 -> Profissional júnior - Geral | C22: =DQC!C10 -> mês
A23: =DQC!A11 -> T1 | B23: =DQC!B11 -> Técnico Pleno - Técnico de Campo | C23: =DQC!C11 -> mês
A24: =DQC!A12 -> T1 | B24: =DQC!B12 -> Técnico Pleno - Técnico Geral | C24: =DQC!C12 -> mês
A26: MO | B26: ='PFP1'!B16 -> Mão de Obra sem Vínculo (HORISTA) | H26: =SUM(H27) -> 0 | I26: =SUM(I27) -> 0
A27: ='PFP1'!A17 -> P2 | B27: ='PFP1'!B17 -> Profissional Médio - horas de capacitação e treinamento | C27: ='PFP1'!C17 -> Horas
A29: ='PFP1'!A19 -> DPV | B29: ='PFP1'!B19 -> Diárias, Passagens e Veículos | H29: =SUM(H30:H33) -> 0 | I29: =SUM(I30:I33) -> 0
A30: ='PFP1'!A20 -> D1 | B30: ='PFP1'!B20 -> Diárias | C30: ='PFP1'!C20 -> dia
A31: ='PFP1'!A21 -> P1 | B31: ='PFP1'!B21 -> Passagens Aéreas (ida e volta) - Brasília -área de atuação da Codevasf | C31: ='PFP1'!C21 -> un
A32: ='PFP1'!A22 -> V1 | B32: ='PFP1'!B22 -> Saveiro Robust 1.6 Total Flex 8V ou similar | C32: ='PFP1'!C22 -> mês
A33: ='PFP1'!A23 -> V2 | B33: ='PFP1'!B23 -> Hilux CS 4x4 2.8 TDI Diesel Mec. ou similar | C33: ='PFP1'!C23 -> mês
A35: ='PFP1'!A24 -> EM | B35: ='PFP1'!B24 -> Equipamentos e Materiais | H35: =SUM(H36:H36) -> 0 | I35: =SUM(I36:I36) -> 0
A36: ='PFP1'!A25 -> EM1 | B36: ='PFP1'!B25 -> Notebook tela 14”, HD 1TB, memória RAM de 8GB | C36: un
A37: TOTAL DOS CUSTOS DIRETOS | F37: =H18+H26+H29+H35 -> 0
A38: TOTAL DOS ENCARGOS E DESPESAS DIVERSAS | F38: =F39-F37 -> 0
A39: TOTAL DA PROPOSTA | F39: =I18+I26+I29+I35 -> 0
A40: NOME DO INFORMANTE: | H40: QUALIFICAÇÃO
A42: ASSINATURA: | H42: DATA:
A44: OBSERVAÇÃO:
A45: Un - unidade de medição do insumo;
A46: Qde - Quantidade do Insumo (não pode ocorrer alteração pela Licitante)
A47: CUD - Custo Unitário Direto do Insumo (sem encargos, taxas e impostos, valor não pode ser maior que o Orçado pela Codevasf)
A48: CT - Custo Total (sem encargos, taxas e impostos) - CT = Qde x CUD
A49: FatorK - Taxa de Ressarcimento de Despesas e Encargos (detalhar composição nas Planilhas "FCON2.1", "FCON2.2", "FCON3")
A50: PU - Preço Unitário (incluído encargos, taxas e impostos) - PU = CUD x FatorK
A51: PT - Preço Total (incluído encargos, taxas e impostos) - PT = Qde x PU

Sheet CT_RAM
A1: RELATÓRIO DE ACOMPANHAMENTO E MEDIÇÃO | H1: CODIGO:
H2: RAM
A3: NOME DA EMPRESA: | H3: N° RAM:
A5: PROJETO: | D5: CONTRATANTE: | H5: CONTRATO:
A6: CONTRATAÇÃO DE SERVIÇOS DE APOIO TÉCNICO, APOIO À FISCALIZAÇÃO, SUPERVISÃO TÉCNICA E CAPACITAÇÃO TÉCNICA, VISANDO A IMPLANTAÇÃO E ACOMPANHAMENTO DE AÇÕES DE DESENVOLVIMENTO REGIONAL NA ÁREA DE ATUAÇÃO DA CODEVASF NOS ESTADOS DO AMAPÁ, BAHIA, CEARÁ, GOIÁS, MARANHÃO, MATO GROSSO, MINAS GERAIS, PARÁ, PARAÍBA, PERNAMBUCO, PIAUÍ, RIO GRANDE DO NORTE, TOCANTINS E NO DISTRITO FEDERAL. | D6: CODEVASF (SEDE)
A7: Cod. | B7: Produtos Demandados | D7: Tipo | F7: Prazo | H7: Obs
A16: Cod. | B16: Produtos Executados | D16: Tipo | F16: Prazo | H16: Obs
A25: Cod. | B25: Infrações Constatadas | D25: Tipo | F25: Sanção | H25: Valor
A30: N° de Atividades Demandadas
A31: N° de Atividades Entregues
A32: Grau de Execução das Atividades Programadas (GEAP)
A33: Fator de Ajuste no Pagamento
A34: Multas e descontos
A35: TOTAL DA ORDEM DE SERVIÇO
A36: TOTAL DA ORDEM DE PAGAMENTO
A37: FISCAL: | H37: SETOR:
A39: ASSINATURA: | H39: DATA:
A41: OBSERVAÇÕES:

Sheet CT_CV
A1: FICHA CURRICULAR DA EQUIPE TÉCNICA | G1: CODIGO:
G2: CV
A3: NOME DA EMPRESA:
A5: PROJETO: | D5: CONTRATANTE: | G5: EDITAL:
A6: CONTRATAÇÃO DE SERVIÇOS DE APOIO TÉCNICO, APOIO À FISCALIZAÇÃO, SUPERVISÃO TÉCNICA E CAPACITAÇÃO TÉCNICA, VISANDO A IMPLANTAÇÃO E ACOMPANHAMENTO DE AÇÕES DE DESENVOLVIMENTO REGIONAL NA ÁREA DE ATUAÇÃO DA CODEVASF NOS ESTADOS DO AMAPÁ, BAHIA, CEARÁ, GOIÁS, MARANHÃO, MATO GROSSO, MINAS GERAIS, PARÁ, PARAÍBA, PERNAMBUCO, PIAUÍ, RIO GRANDE DO NORTE, TOCANTINS E NO DISTRITO FEDERAL. | D6: CODEVASF (SEDE)
A7: NOME DO PROFISSIONAL:
A9: ATUAÇÃO NO PROJETO: | C9: FORMAÇÃO PRINCIPAL: | E9: NASCIMENTO: | G9: NACIONALIDADE:
A11: FORMAÇÃO
A12: ESCOLARIDADE | C12: ENTIDADE | E12: CIDADE | G12: DURAÇÃO | H12: ANO CONCL.
A13: Técnico (título) | C13: Escola | E13: Cidade | G13: X anos | H13: AAAA
A14: Superior (título) | C14: Universidade | E14: Cidade | G14: X anos | H14: AAAA
A15: Especialização (título) | C15: Universidade | E15: Cidade | G15: X anos | H15: AAAA
A16: Mestrado (título) | C16: Universidade | E16: Cidade | G16: X anos | H16: AAAA
A17: Doutorado (título) | C17: Universidade | E17: Cidade | G17: X anos | H17: AAAA
A18: PERIODO | B18: CAPACIDADE TÉCNICA - EXPERIÊNCIA PROFISSIONAL
A19: (MM/AA a MM/AA) | B19: (Empresa, cargo ou função, cidade)
A25: CAT | B25: CAPACIDADE TÉCNICA - SERVIÇO OU OBRA
A26: (nº da ART ou CAT) | B26: (Objeto resumido, quantificação, contratante, cidade)
A32: ANO | B32: CAPACIDADE TECNOLÓGICA - CERTIFICADO
A33: (AAAA) | B33: (Nome do curso, empresa de treinamento, carga horaria em hs, cidade)
A38: CONCORDO EM PARTICIPAR DESTE OBJETO (ASSINATURA): | E38: Nº DO REGISTRO PROFISSIONAL:
A40: NOME DO INFORMANTE: | G40: QUALIFICAÇÃO
A42: ASSINATURA: | G42: DATA:
A44: OBSERVAÇÃO:
A45: 1 – PREENCHER UMA FICHA PARA CADA PROFISSIONAL DA EQUIPE CHAVE (ESPECIALISTAS) E COMPLEMENTAR (ANALISTAS)
A46: 2 – JUNTAR COMPROVANTES DE ESCOLARIDADE
A47: 3 – JUNTAR OS COMPROVANTES DA EXP. PROFISSIONAL, CERTIFICADOS PELA UNIDADE PROFISSIONAL COMPETENTE
A48: 4 – JUNTAR OS COMPROVANTES DE CAPACIDADE TECNICA, RELATIVO AOS CAT DE SERVIÇOS SIMILARES OU CORRELATOS, CONFORME, ITEM 10.
A49: 5 – JUNTAR OS COMPROVANTES DE CAPACIDADE TECNOLOGICA, CONFORME ITEM 10.
A50: 6 – ITENS EM VERMELHO SÃO APENAS INSTRUÇÃO DE PREENCHIMENTO E DEVEM SER APAGADOS.

Sheet Formulário modelo da proposta
A1: PROPOSTA FINANCEIRA DO PROJETO | H1: CODIGO:
H2: PFP-1
A3: NOME DA EMPRESA:
A4: TECHNE Engenheiros Consultores Ltda.
A5: PROJETO: | D5: CONTRATANTE: | H5: EDITAL:
A6: CONTRATAÇÃO DE SERVIÇOS DE APOIO TÉCNICO, APOIO À FISCALIZAÇÃO, SUPERVISÃO TÉCNICA E CAPACITAÇÃO TÉCNICA, VISANDO A IMPLANTAÇÃO E ACOMPANHAMENTO DE AÇÕES DE DESENVOLVIMENTO REGIONAL NA ÁREA DE ATUAÇÃO DA CODEVASF NOS ESTADOS DO AMAPÁ, BAHIA, CEARÁ, GOIÁS, MARANHÃO, MATO GROSSO, MINAS GERAIS, PARÁ, PARAÍBA, PERNAMBUCO, PIAUÍ, RIO GRANDE DO NORTE, TOCANTINS E NO DISTRITO FEDERAL. | D6: CODEVASF (SEDE)
A7: Cod. | B7: Categoria / Insumo | C7: Uni | D7: Qde | E7: CUD | F7: PU | G7: FatorK | H7: CT | I7: PT
A8: MO | B8: Mão de Obra com Vínculo | H8: =SUM(H9:H14) -> 0 | I8: =SUM(I9:I14) -> 0
A9: P1 | B9: Profissional Pleno - Coordenador | C9: mês | D9: 12 | E9: 0 | F9: =ROUND(E9*G9,2) -> 0 | G9: =PFP2.1_FatorKa!$E$37 -> 2.3616 | H9: =ROUND(D9*E9,2) -> 0 | I9: =ROUND(F9*D9,2) -> 0
A10: P2 | B10: Profissional Médio | C10: mês | D10: 12 | E10: 0 | F10: =ROUND(E10*G10,2) -> 0 | G10: =PFP2.1_FatorKa!$E$37 -> 2.3616 | H10: =ROUND(D10*E10,2) -> 0 | I10: =ROUND(F10*D10,2) -> 0
A11: P3 | B11: Profissional Júnior - Técnico de campo | C11: mês | D11: 216 | E11: 0 | F11: 0 | G11: =PFP2.1_FatorKa!$E$37 -> 2.3616 | H11: 0 | I11: 0
A12: P3 | B12: Profissional júnior - Geral | C12: mês | D12: 36 | E12: 0 | F12: 0 | G12: =PFP2.1_FatorKa!$E$37 -> 2.3616 | H12: 0 | I12: 0
A13: T1 | B13: Técnico Pleno - Técnico de Campo | C13: mês | D13: 180 | E13: 0 | F13: 0 | G13: =PFP2.1_FatorKa!$E$37 -> 2.3616 | H13: 0 | I13: 0
A14: T1 | B14: Técnico Pleno - Técnico Geral | C14: mês | D14: 12 | E14: 0 | F14: 0 | G14: =PFP2.1_FatorKa!$E$37 -> 2.3616 | H14: 0 | I14: 0
A16: MO | B16: Mão de Obra sem Vínculo (HORISTA) | H16: =SUM(H17) -> 0 | I16: =SUM(I17:K17) -> 0
A17: P2 | B17: Profissional Médio - horas de capacitação e treinamento | C17: Horas | D17: =DQC!D14 -> 560 | E17: 0 | F17: =ROUND(E17*G17,2) -> 0 | G17: =PFP2.2_FatoKb!E40 -> 2.8718 | H17: =ROUND(D17*E17,2) -> 0 | I17: =ROUND(F17*D17,2) -> 0
A19: DPV | B19: Diárias, Passagens e Veículos | H19: =SUM(H20:H23) -> 0 | I19: =SUM(I20:I23) -> 0
A20: D1 | B20: Diárias | C20: dia | D20: =DQC!D16 -> 1872 | E20: 0 | F20: =ROUND(E20*G20,2) -> 0 | G20: =PFP3_FatorKc!$E$19 -> 1.2558 | H20: =ROUND(D20*E20,2) -> 0 | I20: =ROUND(F20*D20,2) -> 0
A21: P1 | B21: Passagens Aéreas (ida e volta) - Brasília -área de atuação da Codevasf | C21: un | D21: =DQC!D17 -> 16 | E21: 0 | F21: =ROUND(E21*G21,2) -> 0 | G21: =PFP3_FatorKc!$E$19 -> 1.2558 | H21: =ROUND(D21*E21,2) -> 0 | I21: =ROUND(F21*D21,2) -> 0
A22: V1 | B22: Saveiro Robust 1.6 Total Flex 8V ou similar | C22: mês | D22: =DQC!D18 -> 180 | E22: 0 | F22: 0 | G22: =PFP3_FatorKc!$E$19 -> 1.2558 | H22: 0 | I22: 0
A23: V2 | B23: Hilux CS 4x4 2.8 TDI Diesel Mec. ou similar | C23: mês | D23: =DQC!D19 -> 168 | E23: 0 | F23: 0 | G23: =PFP3_FatorKc!$E$19 -> 1.2558 | H23: 0 | I23: 0
A24: EM | B24: Equipamentos e Materiais | H24: =SUM(H25:H27) -> 0 | I24: =SUM(I25:I27) -> 0
A25: EM1 | B25: Notebook tela 14”, HD 1TB, memória RAM de 8GB | C25: un | D25: =DQC!D21 -> 480 | E25: 0 | F25: =ROUND(E25*G25,2) -> 0 | G25: =PFP3_FatorKc!$E$19 -> 1.2558 | H25: =ROUND(D25*E25,2) -> 0 | I25: =ROUND(F25*D25,2) -> 0
A26: EM3 | B26: Modem | C26: un | D26: =DQC!D22 -> 240 | E26: 0 | F26: =ROUND(E26*G26,2) -> 0 | G26: =PFP3_FatorKc!$E$19 -> 1.2558 | H26: =ROUND(D26*E26,2) -> 0 | I26: =ROUND(F26*D26,2) -> 0
A27: EM4 | B27: Internet Móvel | C27: un | D27: =DQC!D23 -> 240 | E27: 0 | F27: 0 | G27: =PFP3_FatorKc!$E$19 -> 1.2558 | H27: 0 | I27: 0
A28: TOTAL DOS CUSTOS DIRETOS | F28: =H8+H16+H19+H24 -> 0
A29: TOTAL DOS ENCARGOS E DESPESAS DIVERSAS | F29: =F30-F28 -> 0
A30: TOTAL DA PROPOSTA | F30: =I8+I16+I19+I24 -> 0
A31: NOME DO INFORMANTE: | H31: QUALIFICAÇÃO
H32: Diretor Executivo
A33: ASSINATURA: | H33: DATA:
H34: 2021-11-29
A35: OBSERVAÇÃO:
A36: Un - unidade de medição do insumo;
A37: Qde - Quantidade do Insumo (não pode ocorrer alteração pela Licitante)
A38: CUD - Custo Unitário Direto do Insumo (sem encargos, taxas e impostos, valor não pode ser maior que o Orçado pela Codevasf)
A39: CT - Custo Total (sem encargos, taxas e impostos) - CT = Qde x CUD
A40: FatorK - Taxa de Ressarcimento de Despesas e Encargos (detalhar composição nas Planilhas "FCON2.1", "FCON2.2", "FCON3")
A41: PU - Preço Unitário (incluído encargos, taxas e impostos) - PU = CUD x FatorK
A42: PT - Preço Total (incluído encargos, taxas e impostos) - PT = Qde x PU
